[Event "17th Capechecs Open 2019"]
[Site "Cap d'Agde"]
[Date "2019.10.31"]
[Round "7.2"]
[White "Flom, Gabriel"]
[Black "Bellahcene, Bilel"]
[Result "1/2-1/2"]
[ECO "D46"]
[WhiteElo "2497"]
[BlackElo "2540"]
[Annotator "ChessBase"]
[PlyCount "31"]
[EventDate "2019.10.26"]
[EventType "swiss"]
[EventCountry "FRA"]
[SourceTitle "playchess.com"]
[Source "ChessBase"]
[SourceQuality "1"]
[TimeControl "5400+30"]

1. d4 {[%emt 0:02:49]} d5 {[%emt 0:00:00]} 2. c4 {[%emt 0:00:04]} e6 {[%emt 0:00:00]} 3. Nc3 {[%emt 0:00:06]} c6 {[%emt 0:00:00]} 4. Nf3 {[%emt 0:00:12]} Nf6 {[%emt 0:00:03]} 5. e3 {[%emt 0:00:04]} Nbd7 {[%emt 0:00:07]} 6. Bd3 {[%emt 0:00:04]} Bb4 {[%emt 0:00:26]} 7. O-O {[%emt 0:00:07]} O-O {[%emt 0:00:03]} 8. Bd2 {[%emt 0:00:45]} c5 {[%emt 0:00:56]} 9. cxd5 {[%emt 0:00:14]} exd5 {[%emt 0:00:06]} 10. dxc5 {[%emt 0:00:31]} Nxc5 {[%emt 0:00:06]} 11. Be2 {[%emt 0:00:07]} Ne6 {[%emt 0:00:26]} 12. a3 {[%emt 0:00:42]} Be7 {[%emt 0:00:12]} 13. Bd3 {[%emt 0:01:49]} Nc5 {[%emt 0:00:14]} 14. Be2 {[%emt 0:00:04]} Ne6 {[%emt 0:00:04]} 15. Bd3 {[%emt 0:00:03]} Nc5 {[%emt 0:00:03]} 16. Be2 {[%emt 0:00:05]} 1/2-1/2

[Event "17th Capechecs Open 2019"]
[Site "Cap d'Agde"]
[Date "2019.10.31"]
[Round "7.3"]
[White "Stany, G.A."]
[Black "Burmakin, Vladimir"]
[Result "1/2-1/2"]
[ECO "B12"]
[WhiteElo "2504"]
[BlackElo "2507"]
[Annotator "ChessBase"]
[PlyCount "74"]
[EventDate "2019.10.26"]
[EventType "swiss"]
[EventCountry "FRA"]
[SourceTitle "playchess.com"]
[Source "ChessBase"]
[SourceQuality "1"]
[TimeControl "5400+30"]

1. e4 {[%emt 0:00:00]} c6 {[%emt 0:00:00]} 2. d4 {[%emt 0:00:00]} d5 {[%emt 0:00:00]} 3. e5 {[%emt 0:00:00]} Bf5 {[%emt 0:00:00]} 4. Nf3 {[%emt 0:00:05]} e6 {[%emt 0:00:07]} 5. Be2 {[%emt 0:00:04]} Nd7 {[%emt 0:00:09]} 6. O-O {[%emt 0:00:06]} Bg6 {[%emt 0:00:06]} 7. b3 {[%emt 0:14:19]} Nh6 {[%emt 0:00:29]} 8. c4 {[%emt 0:00:33]} Nf5 {[%emt 0:00:07]} 9. Na3 {[%emt 0:00:20]} f6 {[%emt 0:19:59]} 10. Nc2 {[%emt 0:17:55]} fxe5 {[%emt 0:25:12]} 11. dxe5 {[%emt 0:00:25]} Nc5 {[%emt 0:03:13]} 12. Ncd4 {[%emt 0:11:44]} Nxd4 {[%emt 0:00:11]} 13. Nxd4 {[%emt 0:00:09]} a5 {[%emt 0:04:08]} 14. Be3 {[%emt 0:01:44]} Qd7 {[%emt 0:01:21]} 15. Rc1 {[%emt 0:09:56]} Be7 {[%emt 0:04:14]} 16. Bg4 {[%emt 0:11:22]} Bf7 {[%emt 0:13:13]} 17. cxd5 {[%emt 0:04:11]} cxd5 {[%emt 0:00:26]} 18. Be2 {[%emt 0:00:05]} O-O {[%emt 0:00:30]} 19. Bb5 {[%emt 0:00:09]} Qc7 {[%emt 0:00:41]} 20. a3 {[%emt 0:04:15]} Qb8 {[%emt 0:02:17]} 21. f4 {[%emt 0:03:19]} Kh8 {[%emt 0:09:12]} 22. Qg4 {[%emt 0:00:29]} Qd8 {[%emt 0:03:59]} 23. b4 {[%emt 0:08:54]} axb4 {[%emt 0:00:03]} 24. axb4 {[%emt 0:00:04]} Ra3 {[%emt 0:01:26]} 25. bxc5 {[%emt 0:06:17]} Rxe3 {[%emt 0:00:06]} 26. Nxe6 {[%emt 0:00:03]} Bxe6 {[%emt 0:00:20]} 27. Qxe6 {[%emt 0:00:04]} d4 {[%emt 0:00:22]} 28. Qc4 {[%emt 0:01:58]} g5 {[%emt 0:05:00]} 29. e6 {[%emt 0:01:32]} Rxf4 {[%emt 0:00:02]} 30. Bd7 {[%emt 0:00:56]} Bf6 {[%emt 0:00:47]} 31. Rxf4 {[%emt 0:01:33]} gxf4 {[%emt 0:00:02]} 32. Qd5 {[%emt 0:00:11]} Qa5 {[%emt 0:01:22]} 33. Rf1 {[%emt 0:00:46]} Re1 {[%emt 0:02:10]} 34. Qd6 {[%emt 0:00:26]} Kg7 {[%emt 0:01:05]} 35. e7 {[%emt 0:01:47]} Bxe7 {[%emt 0:02:57]} 36. Qxd4+ {[%emt 0:00:15]} Bf6 {[%emt 0:00:04]} 37. Qxf4 {[%emt 0:00:05]} Qxc5+ {[%emt 0:01:11]} 1/2-1/2

[Event "17th Capechecs Open 2019"]
[Site "Cap d'Agde"]
[Date "2019.11.01"]
[Round "8.1"]
[White "Bellahcene, Bilel"]
[Black "Sivuk, Vitaly"]
[Result "1-0"]
[ECO "B33"]
[WhiteElo "2540"]
[BlackElo "2559"]
[Annotator "ChessBase"]
[PlyCount "117"]
[EventDate "2019.10.26"]
[EventType "swiss"]
[EventCountry "FRA"]
[SourceTitle "playchess.com"]
[Source "ChessBase"]
[SourceQuality "1"]
[TimeControl "5400+30"]

1. e4 {[%emt 0:00:00]} c5 {[%emt 0:00:00]} 2. Nf3 {[%emt 0:00:00]} Nc6 {[%emt 0:00:00]} 3. d4 {[%emt 0:00:25]} cxd4 {[%emt 0:00:00]} 4. Nxd4 {[%emt 0:00:02]} Nf6 {[%emt 0:00:09]} 5. Nc3 {[%emt 0:00:02]} e5 {[%emt 0:00:11]} 6. Ndb5 {[%emt 0:00:45]} d6 {[%emt 0:00:09]} 7. Bg5 {[%emt 0:00:01]} a6 {[%emt 0:00:09]} 8. Na3 {[%emt 0:00:01]} b5 {[%emt 0:00:10]} 9. Nd5 {[%emt 0:00:38]} Be7 {[%emt 0:00:10]} 10. Bxf6 {[%emt 0:00:02]} Bxf6 {[%emt 0:00:08]} 11. c4 {[%emt 0:00:05]} b4 {[%emt 0:00:11]} 12. Nc2 {[%emt 0:00:02]} O-O {[%emt 0:00:20]} 13. g3 {[%emt 0:00:18]} Be6 {[%emt 0:00:57]} 14. Bg2 {[%emt 0:04:02]} Bxd5 {[%emt 0:00:54]} 15. Qxd5 {[%emt 0:08:01]} Qb6 {[%emt 0:01:15]} 16. O-O {[%emt 0:00:43]} Bg5 {[%emt 0:04:21]} 17. Rad1 {[%emt 0:13:20]} Rfd8 {[%emt 0:01:58]} 18. Kh1 {[%emt 0:00:31]} Ra7 {[%emt 0:02:51]} 19. b3 {[%emt 0:07:22]} h5 {[%emt 0:18:18]} 20. f4 {[%emt 0:02:37]} Bf6 {[%emt 0:07:02]} 21. Qd3 {[%emt 0:00:17]} Qa5 {[%emt 0:05:57]} 22. Rd2 {[%emt 0:14:32]} Nd4 {[%emt 0:14:28]} 23. Ne3 {[%emt 0:02:30]} Re8 {[%emt 0:08:19]} 24. Nd5 {[%emt 0:01:02]} Bd8 {[%emt 0:00:05]} 25. Rdf2 {[%emt 0:01:59]} Re6 {[%emt 0:02:14]} 26. Qd2 {[%emt 0:10:43]} Rh6 {[%emt 0:07:41]} 27. Bh3 {[%emt 0:04:50]} Qc5 {[%emt 0:02:25]} 28. Qxb4 {[%emt 0:03:37]} Qxb4 {[%emt 0:00:12]} 29. Nxb4 {[%emt 0:00:01]} h4 {[%emt 0:01:32]} 30. Kg2 {[%emt 0:02:36]} hxg3 {[%emt 0:00:41]} 31. hxg3 {[%emt 0:00:04]} exf4 {[%emt 0:02:56]} 32. Rxf4 {[%emt 0:01:51]} a5 {[%emt 0:00:42]} 33. Nd5 {[%emt 0:01:46]} Bg5 {[%emt 0:00:26]} 34. R4f2 {[%emt 0:02:28]} Nc6 {[%emt 0:00:48]} 35. Bg4 {[%emt 0:01:17]} Ne5 {[%emt 0:00:51]} 36. Be2 {[%emt 0:00:01]} Re6 {[%emt 0:00:13]} 37. Rf5 {[%emt 0:02:02]} Bd2 {[%emt 0:01:54]} 38. Rd1 {[%emt 0:01:03]} Bb4 {[%emt 0:00:21]} 39. Rh5 {[%emt 0:03:21]} Bc5 {[%emt 0:02:14]} 40. Rdh1 {[%emt 0:00:55]} Ng6 {[%emt 0:00:25]} 41. Bf3 {[%emt 0:02:12]} Re5 {[%emt 0:00:18]} 42. R5h3 {[%emt 0:03:18]} Rg5 {[%emt 0:01:43]} 43. Bh5 {[%emt 0:00:27]} Ne5 {[%emt 0:00:46]} 44. Bg4 {[%emt 0:00:48]} Ng6 {[%emt 0:00:53]} 45. Bf5 {[%emt 0:00:26]} Rb7 {[%emt 0:04:30]} 46. Bxg6 {[%emt 0:00:38]} fxg6 {[%emt 0:00:05]} 47. Rh8+ {[%emt 0:00:05]} Kf7 {[%emt 0:00:02]} 48. Rf1+ {[%emt 0:00:08]} Ke6 {[%emt 0:00:04]} 49. Re8+ {[%emt 0:01:12]} Kd7 {[%emt 0:00:01]} 50. Rff8 {[%emt 0:03:54]} Re5 {[%emt 0:00:59]} 51. Ra8 {[%emt 0:00:50]} Ke6 {[%emt 0:01:16]} 52. Rfe8+ {[%emt 0:01:19]} Kd7 {[%emt 0:01:00]} 53. Rxe5 {[%emt 0:00:07]} dxe5 {[%emt 0:00:05]} 54. Rxa5 {[%emt 0:00:01]} Bd4 {[%emt 0:00:19]} 55. c5 {[%emt 0:00:35]} Kc6 {[%emt 0:00:23]} 56. b4 {[%emt 0:00:32]} Rf7 {[%emt 0:00:10]} 57. a4 {[%emt 0:01:00]} Rf2+ {[%emt 0:00:25]} 58. Kh3 {[%emt 0:00:02]} Re2 {[%emt 0:00:13]} 59. Ra7 {[%emt 0:00:22] Kxd5} 1-0

[Event "17th Capechecs Open 2019"]
[Site "Cap d'Agde"]
[Date "2019.11.01"]
[Round "8.2"]
[White "Shchekachev, Andrei"]
[Black "Flom, Gabriel"]
[Result "0-1"]
[ECO "E07"]
[WhiteElo "2524"]
[BlackElo "2497"]
[Annotator "ChessBase"]
[PlyCount "63"]
[EventDate "2019.10.26"]
[EventType "swiss"]
[EventCountry "FRA"]
[SourceTitle "playchess.com"]
[Source "ChessBase"]
[SourceQuality "1"]
[TimeControl "5400+30"]

1. Nf3 {[%emt 0:00:00]} d5 {[%emt 0:00:21]} 2. d4 {[%emt 0:00:10]} Nf6 {[%emt 0:01:45]} 3. c4 {[%emt 0:01:26]} c6 {[%emt 0:00:04]} 4. Nc3 {[%emt 0:00:58]} e6 {[%emt 0:00:11]} 5. g3 {[%emt 0:01:32]} dxc4 {[%emt 0:05:29]} 6. Bg2 {[%emt 0:00:52]} Nbd7 {[%emt 0:02:07]} 7. a4 {[%emt 0:06:51]} Be7 {[%emt 0:05:40]} 8. O-O {[%emt 0:00:31]} O-O {[%emt 0:00:01]} 9. e4 {[%emt 0:03:00]} b6 {[%emt 0:05:37]} 10. Qe2 {[%emt 0:07:10]} Ba6 {[%emt 0:03:53]} 11. Rd1 {[%emt 0:04:46]} Rc8 {[%emt 0:03:09]} 12. Bf4 {[%emt 0:02:57]} Re8 {[%emt 0:01:57]} 13. h4 {[%emt 0:17:07]} Bb4 {[%emt 0:12:06]} 14. Na2 {[%emt 0:10:10]} Be7 {[%emt 0:00:15]} 15. Nc3 {[%emt 0:00:54]} Bb4 {[%emt 0:11:44]} 16. Qc2 {[%emt 0:02:41]} Qe7 {[%emt 0:01:20]} 17. e5 {[%emt 0:09:27]} Nd5 {[%emt 0:00:04]} 18. Ng5 {[%emt 0:00:11]} f5 {[%emt 0:09:23]} 19. exf6 {[%emt 0:02:05]} gxf6 {[%emt 0:00:04]} 20. Nh3 {[%emt 0:00:08]} Bxc3 {[%emt 0:15:35]} 21. bxc3 {[%emt 0:02:04]} Bb7 {[%emt 0:02:14]} 22. Bc1 {[%emt 0:19:19]} c5 {[%emt 0:03:38]} 23. Nf4 {[%emt 0:01:16]} cxd4 {[%emt 0:10:04]} 24. Rxd4 {[%emt 0:00:53]} Ne5 {[%emt 0:00:03]} 25. Nxd5 {[%emt 0:02:34]} Bxd5 {[%emt 0:00:33]} 26. Rxd5 {[%emt 0:01:04]} exd5 {[%emt 0:00:04]} 27. Bxd5+ {[%emt 0:00:05]} Kh8 {[%emt 0:01:25]} 28. Be3 {[%emt 0:01:20]} Rcd8 {[%emt 0:03:55]} 29. Bg2 {[%emt 0:00:55]} Rd3 {[%emt 0:01:00]} 30. Bd4 {[%emt 0:01:47]} Qd6 {[%emt 0:00:43]} 31. Qb2 {[%emt 0:00:46]} Rd8 {[%emt 0:00:32]} 32. Re1 {[%emt 0:00:30]} 0-1

[Event "17th Capechecs Open 2019"]
[Site "Cap d'Agde"]
[Date "2019.11.01"]
[Round "8.3"]
[White "Burmakin, Vladimir"]
[Black "Barseghyan, Harutyun"]
[Result "1/2-1/2"]
[ECO "A06"]
[WhiteElo "2507"]
[BlackElo "2500"]
[Annotator "ChessBase"]
[PlyCount "67"]
[EventDate "2019.10.26"]
[EventType "swiss"]
[EventCountry "FRA"]
[SourceTitle "playchess.com"]
[Source "ChessBase"]
[SourceQuality "1"]
[TimeControl "5400+30"]

1. Nf3 {[%emt 0:00:00]} c5 {[%emt 0:00:00]} 2. e3 {[%emt 0:00:01]} d5 {[%emt 0:00:49]} 3. b3 {[%emt 0:00:08]} Nf6 {[%emt 0:01:06]} 4. Bb2 {[%emt 0:00:06]} g6 {[%emt 0:01:09]} 5. c4 {[%emt 0:00:17]} Bg7 {[%emt 0:00:56]} 6. cxd5 {[%emt 0:01:37]} O-O {[%emt 0:06:32]} 7. Qc2 {[%emt 0:00:52]} Qxd5 {[%emt 0:07:38]} 8. Nc3 {[%emt 0:00:10]} Qd8 {[%emt 0:00:57]} 9. Be2 {[%emt 0:04:00]} Bf5 {[%emt 0:04:23]} 10. d3 {[%emt 0:00:11]} Nc6 {[%emt 0:00:11]} 11. Rd1 {[%emt 0:00:44]} Rc8 {[%emt 0:03:01]} 12. Qb1 {[%emt 0:00:05]} e5 {[%emt 0:13:32]} 13. O-O {[%emt 0:00:11]} Qe7 {[%emt 0:00:05]} 14. Ne4 {[%emt 0:08:49]} Nxe4 {[%emt 0:08:43]} 15. dxe4 {[%emt 0:00:06]} Be6 {[%emt 0:07:03]} 16. Qa1 {[%emt 0:00:22]} f6 {[%emt 0:00:08]} 17. Qc1 {[%emt 0:12:20]} Rfd8 {[%emt 0:06:28]} 18. Bc4 {[%emt 0:00:51]} Bf8 {[%emt 0:00:37]} 19. Ba3 {[%emt 0:09:16]} Nb4 {[%emt 0:03:07]} 20. Rxd8 {[%emt 0:05:21]} Rxd8 {[%emt 0:01:12]} 21. Bxb4 {[%emt 0:00:41]} cxb4 {[%emt 0:00:03]} 22. Bxe6+ {[%emt 0:04:57]} Qxe6 {[%emt 0:01:52]} 23. Qc7 {[%emt 0:00:06]} Rd7 {[%emt 0:01:16]} 24. Qc8 {[%emt 0:01:17]} Qc6 {[%emt 0:00:18]} 25. Qxc6 {[%emt 0:05:02]} bxc6 {[%emt 0:00:03]} 26. Rc1 {[%emt 0:01:19]} c5 {[%emt 0:00:59]} 27. Kf1 {[%emt 0:01:59]} a5 {[%emt 0:00:08]} 28. Ke2 {[%emt 0:06:43]} a4 {[%emt 0:00:09]} 29. bxa4 {[%emt 0:10:42]} Ra7 {[%emt 0:00:10]} 30. Kd3 {[%emt 0:00:25]} Rxa4 {[%emt 0:00:22]} 31. Rc2 {[%emt 0:00:11]} Kf7 {[%emt 0:07:03]} 32. Nd2 {[%emt 0:04:59]} Ke6 {[%emt 0:00:03]} 33. Kc4 {[%emt 0:02:35]} Kd6 {[%emt 0:02:58]} 34. Nb3 {[%emt 0:05:50]} 1/2-1/2

[Event "17th Capechecs Open 2019"]
[Site "Cap d'Agde"]
[Date "2019.11.01"]
[Round "8.4"]
[White "Moskalenko, Viktor"]
[Black "Stany, G.A."]
[Result "0-1"]
[ECO "D90"]
[WhiteElo "2475"]
[BlackElo "2504"]
[Annotator "ChessBase"]
[PlyCount "130"]
[EventDate "2019.10.26"]
[EventType "swiss"]
[EventCountry "FRA"]
[SourceTitle "playchess.com"]
[Source "ChessBase"]
[SourceQuality "1"]
[TimeControl "5400+30"]

1. d4 {[%emt 0:00:42]} Nf6 {[%emt 0:00:00]} 2. c4 {[%emt 0:00:12]} g6 {[%emt 0:00:00]} 3. Nc3 {[%emt 0:00:09]} d5 {[%emt 0:00:00]} 4. cxd5 {[%emt 0:00:16]} Nxd5 {[%emt 0:00:00]} 5. Bd2 {[%emt 0:00:07]} Nb6 {[%emt 0:00:00]} 6. Nf3 {[%emt 0:00:39]} Bg7 {[%emt 0:00:00]} 7. Bg5 {[%emt 0:00:08]} c5 {[%emt 0:07:19]} 8. dxc5 {[%emt 0:02:04]} N6d7 {[%emt 0:01:54]} 9. e3 {[%emt 0:02:43]} h6 {[%emt 0:00:09]} 10. Bh4 {[%emt 0:00:18]} O-O {[%emt 0:00:59]} 11. Rc1 {[%emt 0:00:14]} Nc6 {[%emt 0:01:18]} 12. Bb5 {[%emt 0:01:00]} g5 {[%emt 0:00:57]} 13. Bg3 {[%emt 0:00:29]} Nxc5 {[%emt 0:00:09]} 14. O-O {[%emt 0:00:29]} Be6 {[%emt 0:32:20]} 15. Qe2 {[%emt 0:28:57]} Qb6 {[%emt 0:03:15]} 16. Bxc6 {[%emt 0:14:25]} bxc6 {[%emt 0:04:36]} 17. Nd4 {[%emt 0:00:09]} Bd7 {[%emt 0:01:50]} 18. h4 {[%emt 0:05:02]} gxh4 {[%emt 0:11:56]} 19. Bxh4 {[%emt 0:00:54]} e5 {[%emt 0:00:04]} 20. Nb3 {[%emt 0:01:01]} Nxb3 {[%emt 0:01:14]} 21. axb3 {[%emt 0:00:07]} Qb4 {[%emt 0:10:11]} 22. Bg3 {[%emt 0:11:44]} Qxb3 {[%emt 0:01:39]} 23. Ne4 {[%emt 0:03:16]} Bf5 {[%emt 0:02:57]} 24. Nc5 {[%emt 0:00:40]} Qb5 {[%emt 0:00:11]} 25. Qf3 {[%emt 0:11:46]} Bg6 {[%emt 0:00:21]} 26. e4 {[%emt 0:01:05]} Qxb2 {[%emt 0:02:52]} 27. Nd7 {[%emt 0:01:22]} Rfe8 {[%emt 0:00:46]} 28. Nf6+ {[%emt 0:02:04]} Bxf6 {[%emt 0:00:24]} 29. Qxf6 {[%emt 0:00:02]} Re6 {[%emt 0:00:19]} 30. Qh4 {[%emt 0:01:01]} Kh7 {[%emt 0:00:23]} 31. Rce1 {[%emt 0:00:30]} a5 {[%emt 0:07:27]} 32. f4 {[%emt 0:00:51]} exf4 {[%emt 0:00:10]} 33. Bxf4 {[%emt 0:00:02]} h5 {[%emt 0:01:53]} 34. e5 {[%emt 0:02:01]} a4 {[%emt 0:03:14]} 35. Bc1 {[%emt 0:01:37]} Qc3 {[%emt 0:02:26]} 36. Re3 {[%emt 0:06:43]} Qc5 {[%emt 0:00:04]} 37. Qf2 {[%emt 0:00:41]} a3 {[%emt 0:02:55]} 38. Rxa3 {[%emt 0:00:16]} Qxf2+ {[%emt 0:00:05]} 39. Rxf2 {[%emt 0:00:10]} Rxa3 {[%emt 0:00:03]} 40. Bxa3 {[%emt 0:00:01]} Rxe5 {[%emt 0:00:06]} 41. Rf6 {[%emt 0:00:49]} Ra5 {[%emt 0:02:02]} 42. Be7 {[%emt 0:00:42]} Ra1+ {[%emt 0:00:11]} 43. Rf1 {[%emt 0:01:41]} Rxf1+ {[%emt 0:00:56]} 44. Kxf1 {[%emt 0:00:01]} Be4 {[%emt 0:00:09]} 45. g3 {[%emt 0:00:13]} Kg6 {[%emt 0:00:03]} 46. Kf2 {[%emt 0:00:11]} Kf5 {[%emt 0:00:10]} 47. Ke3 {[%emt 0:00:13]} Ke5 {[%emt 0:00:13]} 48. Ba3 {[%emt 0:00:47]} Bg6 {[%emt 0:00:39]} 49. Bb2+ {[%emt 0:00:40]} Kd5 {[%emt 0:00:05]} 50. Bf6 {[%emt 0:00:44]} c5 {[%emt 0:01:12]} 51. Be7 {[%emt 0:01:01]} Bf5 {[%emt 0:00:24]} 52. Bf6 {[%emt 0:00:17]} Bd7 {[%emt 0:00:35]} 53. Be7 {[%emt 0:00:09]} c4 {[%emt 0:00:38]} 54. Bf6 {[%emt 0:01:57]} Ke6 {[%emt 0:00:13]} 55. Bc3 {[%emt 0:00:36]} Kf5 {[%emt 0:00:03]} 56. Bd4 {[%emt 0:01:07]} Kg4 {[%emt 0:00:11]} 57. Kf2 {[%emt 0:00:06]} Be6 {[%emt 0:00:13]} 58. Bc3 {[%emt 0:00:14]} Bd5 {[%emt 0:00:17]} 59. Bd4 {[%emt 0:00:18]} Bb7 {[%emt 0:01:10]} 60. Bc3 {[%emt 0:00:05]} Bc8 {[%emt 0:00:04]} 61. Bd4 {[%emt 0:00:07]} f5 {[%emt 0:00:46]} 62. Be5 {[%emt 0:02:20]} f4 {[%emt 0:00:04]} 63. Bxf4 {[%emt 0:00:30]} h4 {[%emt 0:00:04]} 64. Be5 {[%emt 0:00:12]} h3 {[%emt 0:00:06]} 65. Kg1 {[%emt 0:00:22]} Kf3 {[%emt 0:00:13]} 0-1